[Event "Early-Titled-Tuesday-Blitz-July-09-2024"]
[Site "Chess.com"]
[Date "2024.07.09"]
[Round "4"]
[White "snowlord"]
[Black "xakevicius91"]
[Result "1-0"]
[WhiteElo "2916"]
[BlackElo "2598"]
[TimeControl "180+1"]
[EndTime "8:39:48 PDT"]
[Termination "snowlord won on time"]

1. e4 {[%clk 0:03:00.2]} 1... c5 {[%clk 0:02:59.9]} 2. Ne2 {[%clk 0:02:59.5]}
2... e6 {[%clk 0:02:59.2]} 3. Nbc3 {[%clk 0:02:58.4]} 3... Nc6 {[%clk
0:02:58.9]} 4. g3 {[%clk 0:02:57.8]} 4... d5 {[%clk 0:02:56.7]} 5. d3 {[%clk
0:02:57]} 5... Nf6 {[%clk 0:02:47.7]} 6. Bg2 {[%clk 0:02:56.4]} 6... d4 {[%clk
0:02:48.2]} 7. Nb1 {[%clk 0:02:55.8]} 7... e5 {[%clk 0:02:48.7]} 8. a4 {[%clk
0:02:55.4]} 8... h5 {[%clk 0:02:48.9]} 9. h3 {[%clk 0:02:52.1]} 9... Be6 {[%clk
0:02:47.2]} 10. f4 {[%clk 0:02:50.7]} 10... exf4 {[%clk 0:02:39.6]} 11. gxf4
{[%clk 0:02:50.4]} 11... Be7 {[%clk 0:02:30]} 12. Nd2 {[%clk 0:02:46.7]} 12...
h4 {[%clk 0:02:22.8]} 13. Nf3 {[%clk 0:02:42.1]} 13... Nh5 {[%clk 0:02:21.6]}
14. f5 {[%clk 0:02:15.4]} 14... Bd7 {[%clk 0:02:19.2]} 15. Nf4 {[%clk
0:02:15.2]} 15... Ng3 {[%clk 0:01:55]} 16. Rg1 {[%clk 0:02:15.1]} 16... Bd6
{[%clk 0:01:52]} 17. c3 {[%clk 0:01:53.2]} 17... Ne5 {[%clk 0:01:43.4]} 18. Nd5
{[%clk 0:01:47.1]} 18... Bc6 {[%clk 0:01:38.3]} 19. cxd4 {[%clk 0:01:43.9]}
19... Nxf3+ {[%clk 0:01:37.3]} 20. Bxf3 {[%clk 0:01:39.1]} 20... Bxd5 {[%clk
0:01:37.4]} 21. exd5 {[%clk 0:01:38.8]} 21... cxd4 {[%clk 0:01:37.7]} 22. Be4
{[%clk 0:01:25]} 22... Qe7 {[%clk 0:01:29.2]} 23. Qg4 {[%clk 0:01:24.4]} 23...
Bb4+ {[%clk 0:01:17.6]} 24. Kd1 {[%clk 0:01:24.1]} 24... Bd6 {[%clk 0:01:13.1]}
25. Bf3 {[%clk 0:01:06.4]} 25... Be5 {[%clk 0:01:07.8]} 26. Re1 {[%clk
0:01:02.7]} 26... f6 {[%clk 0:01:04.2]} 27. d6 {[%clk 0:01:03.2]} 27... Qf7
{[%clk 0:00:50.4]} 28. Ra3 {[%clk 0:00:36]} 28... O-O-O {[%clk 0:00:44.9]} 29.
Bf4 {[%clk 0:00:32.5]} 29... Rhe8 {[%clk 0:00:33.7]} 30. Bxe5 {[%clk 0:00:29]}
30... Rxe5 {[%clk 0:00:34]} 31. Rxe5 {[%clk 0:00:28.8]} 31... fxe5 {[%clk
0:00:34.9]} 32. f6+ {[%clk 0:00:29.7]} 32... Rd7 {[%clk 0:00:31.7]} 33. fxg7
{[%clk 0:00:22.3]} 33... Qxg7 {[%clk 0:00:27.2]} 34. Rb3 {[%clk 0:00:22.8]}
34... b6 {[%clk 0:00:17.2]} 35. a5 {[%clk 0:00:19.9]} 35... Qf7 {[%clk
0:00:08.4]} 36. Kc2 {[%clk 0:00:20.3]} 36... Nf1 {[%clk 0:00:06]} 37. Qe4 {[%clk
0:00:15.4]} 37... Ne3+ {[%clk 0:00:06.1]} 38. Kb1 {[%clk 0:00:16]} 1-0

[Event "Early-Titled-Tuesday-Blitz-July-09-2024"]
[Site "Chess.com"]
[Date "2024.07.09"]
[Round "4"]
[White "Barbix1"]
[Black "ncofre98"]
[Result "0-1"]
[WhiteElo "2356"]
[BlackElo "2541"]
[TimeControl "180+1"]
[EndTime "8:39:48 PDT"]
[Termination "ncofre98 won on time"]

1. d4 {[%clk 0:03:00.9]} 1... Nf6 {[%clk 0:02:58.2]} 2. c4 {[%clk 0:03:00.1]}
2... c5 {[%clk 0:02:58.9]} 3. d5 {[%clk 0:02:59.2]} 3... e6 {[%clk 0:02:59.6]}
4. Nf3 {[%clk 0:02:56.8]} 4... exd5 {[%clk 0:03:00]} 5. cxd5 {[%clk 0:02:57.7]}
5... d6 {[%clk 0:03:00.5]} 6. Nc3 {[%clk 0:02:58]} 6... g6 {[%clk 0:03:01.1]} 7.
Nd2 {[%clk 0:02:57.3]} 7... Bg7 {[%clk 0:03:01.1]} 8. e4 {[%clk 0:02:57.5]} 8...
O-O {[%clk 0:03:01.2]} 9. Be2 {[%clk 0:02:57.7]} 9... Re8 {[%clk 0:03:01.8]} 10.
O-O {[%clk 0:02:57.3]} 10... Na6 {[%clk 0:03:02.4]} 11. f3 {[%clk 0:02:43.8]}
11... Nc7 {[%clk 0:03:02.3]} 12. a4 {[%clk 0:02:23.5]} 12... b6 {[%clk
0:03:01.6]} 13. Nc4 {[%clk 0:02:22]} 13... Ba6 {[%clk 0:03:01.2]} 14. Bf4 {[%clk
0:02:08.6]} 14... Bxc4 {[%clk 0:03:00.6]} 15. Bxc4 {[%clk 0:02:09.5]} 15... a6
{[%clk 0:02:52.2]} 16. Qd2 {[%clk 0:01:49.3]} 16... Qd7 {[%clk 0:02:44.4]} 17.
Qe2 {[%clk 0:01:06.5]} 17... Nh5 {[%clk 0:02:18.3]} 18. Bd2 {[%clk 0:00:45.4]}
18... f5 {[%clk 0:02:13.4]} 19. Kh1 {[%clk 0:00:26.8]} 19... f4 {[%clk 0:02:03]}
20. Rfd1 {[%clk 0:00:11.5]} 20... Be5 {[%clk 0:01:23.9]} 21. Qf1 {[%clk
0:00:10.8]} 21... Qe7 {[%clk 0:01:21.8]} 22. Qe1 {[%clk 0:00:09.8]} 22... Qg5
{[%clk 0:01:19.6]} 23. Ra2 {[%clk 0:00:04.1]} 23... Ng3+ {[%clk 0:01:10.2]} 24.
hxg3 {[%clk 0:00:02.9]} 24... Qh5+ {[%clk 0:01:10.4]} 25. Kg1 {[%clk 0:00:02.2]}
25... Bd4+ {[%clk 0:01:10.9]} 26. Kf1 {[%clk 0:00:02.6]} 26... Qh1+ {[%clk
0:01:10.5]} 27. Ke2 {[%clk 0:00:02.3]} 27... Qxg2+ {[%clk 0:01:04.7]} 28. Kd3
{[%clk 0:00:02.7]} 28... Qxf3+ {[%clk 0:01:01.9]} 29. Kc2 {[%clk 0:00:03.1]}
29... fxg3 {[%clk 0:00:54.2]} 30. Qe2 {[%clk 0:00:03.4]} 30... Qf6 {[%clk
0:00:31.4]} 31. Be3 {[%clk 0:00:03.3]} 31... Rf8 {[%clk 0:00:23.2]} 32. Raa1
{[%clk 0:00:03.4]} 32... Be5 {[%clk 0:00:12.8]} 33. Rg1 {[%clk 0:00:03.4]} 33...
Qf3 {[%clk 0:00:08.8]} 34. Bh6 {[%clk 0:00:01]} 34... Qxe2+ {[%clk 0:00:08.6]}
35. Nxe2 {[%clk 0:00:01.6]} 35... Rf2 {[%clk 0:00:08.3]} 36. Raf1 {[%clk
0:00:01.2]} 36... b5 {[%clk 0:00:07.9]} 0-1

[Event "Early-Titled-Tuesday-Blitz-July-09-2024"]
[Site "Chess.com"]
[Date "2024.07.09"]
[Round "4"]
[White "RantomOpening"]
[Black "Nbk90"]
[Result "0-1"]
[WhiteElo "2567"]
[BlackElo "2273"]
[TimeControl "180+1"]
[EndTime "8:39:48 PDT"]
[Termination "Nbk90 won by checkmate"]

1. e4 {[%clk 0:02:57.5]} 1... e6 {[%clk 0:02:57]} 2. d4 {[%clk 0:02:55.9]} 2...
d5 {[%clk 0:02:57.3]} 3. Nc3 {[%clk 0:02:54.8]} 3... Bb4 {[%clk 0:02:56.8]} 4.
e5 {[%clk 0:02:53.7]} 4... c5 {[%clk 0:02:57.2]} 5. a3 {[%clk 0:02:52.4]} 5...
Bxc3+ {[%clk 0:02:57.7]} 6. bxc3 {[%clk 0:02:51.3]} 6... Ne7 {[%clk 0:02:58.4]}
7. a4 {[%clk 0:02:48.7]} 7... Nbc6 {[%clk 0:02:51.9]} 8. Nf3 {[%clk 0:02:47.3]}
8... Qa5 {[%clk 0:02:51]} 9. Bd2 {[%clk 0:02:44.6]} 9... Bd7 {[%clk 0:02:47.9]}
10. Bd3 {[%clk 0:02:43.6]} 10... h6 {[%clk 0:02:43.6]} 11. O-O {[%clk
0:02:42.5]} 11... Qc7 {[%clk 0:02:42.9]} 12. Re1 {[%clk 0:02:31.8]} 12... O-O
{[%clk 0:02:40.7]} 13. Bc1 {[%clk 0:02:19.7]} 13... cxd4 {[%clk 0:02:35.2]} 14.
cxd4 {[%clk 0:02:18.9]} 14... Nb4 {[%clk 0:02:29.7]} 15. Ba3 {[%clk 0:02:18.2]}
15... Nxd3 {[%clk 0:02:28.9]} 16. Qxd3 {[%clk 0:02:16.2]} 16... Rfe8 {[%clk
0:02:24.5]} 17. Rec1 {[%clk 0:02:05.4]} 17... Qc4 {[%clk 0:02:22.8]} 18. Nd2
{[%clk 0:01:56]} 18... Qxd3 {[%clk 0:02:20]} 19. cxd3 {[%clk 0:01:56.9]} 19...
Nc6 {[%clk 0:02:06.2]} 20. Nb3 {[%clk 0:01:55.1]} 20... b6 {[%clk 0:02:03.6]}
21. a5 {[%clk 0:01:54.4]} 21... Rec8 {[%clk 0:01:58.8]} 22. axb6 {[%clk
0:01:53.3]} 22... axb6 {[%clk 0:01:59.7]} 23. Bd6 {[%clk 0:01:49.9]} 23... Na5
{[%clk 0:01:42.7]} 24. Nxa5 {[%clk 0:01:49.4]} 24... Rxc1+ {[%clk 0:01:30.9]}
25. Rxc1 {[%clk 0:01:47.3]} 25... Rxa5 {[%clk 0:01:31.8]} 26. Bc7 {[%clk
0:01:41.9]} 26... Rb5 {[%clk 0:01:17.8]} 27. Kf1 {[%clk 0:01:41.1]} 27... Rb3
{[%clk 0:01:16.5]} 28. Bd8 {[%clk 0:01:27.7]} 28... Bb5 {[%clk 0:01:10.6]} 29.
Rc8 {[%clk 0:01:26.1]} 29... Bxd3+ {[%clk 0:01:04.7]} 30. Ke1 {[%clk 0:01:26.3]}
30... Kh7 {[%clk 0:01:04.6]} 31. Rb8 {[%clk 0:01:23.1]} 31... b5 {[%clk
0:01:03.2]} 32. Rb7 {[%clk 0:01:23.4]} 32... Kg6 {[%clk 0:01:01.6]} 33. h4
{[%clk 0:01:23]} 33... h5 {[%clk 0:00:59]} 34. f3 {[%clk 0:01:21.2]} 34... Bf5
{[%clk 0:00:53.7]} 35. Kf2 {[%clk 0:01:17.6]} 35... Rb2+ {[%clk 0:00:50.8]} 36.
Kg3 {[%clk 0:01:14.5]} 36... b4 {[%clk 0:00:51]} 37. Kf4 {[%clk 0:01:09.7]}
37... b3 {[%clk 0:00:25.8]} 38. g4 {[%clk 0:01:08.7]} 38... hxg4 {[%clk
0:00:25.9]} 39. fxg4 {[%clk 0:01:09.6]} 39... Be4 {[%clk 0:00:25.5]} 40. h5+
{[%clk 0:01:08.2]} 40... Kh7 {[%clk 0:00:25.2]} 41. Ke3 {[%clk 0:00:53.1]} 41...
Rg2 {[%clk 0:00:20.3]} 42. g5 {[%clk 0:00:21.2]} 42... b2 {[%clk 0:00:18.8]} 43.
Rxf7 {[%clk 0:00:21.4]} 43... b1=Q {[%clk 0:00:16.3]} 44. g6+ {[%clk 0:00:22]}
44... Bxg6 {[%clk 0:00:15.8]} 45. hxg6+ {[%clk 0:00:21.9]} 45... Qxg6 {[%clk
0:00:14.7]} 46. Rf8 {[%clk 0:00:21.5]} 46... Qe4# {[%clk 0:00:14.6]} 0-1

[Event "Early-Titled-Tuesday-Blitz-July-09-2024"]
[Site "Chess.com"]
[Date "2024.07.09"]
[Round "4"]
[White "Defenstrator"]
[Black "brm72"]
[Result "0-1"]
[WhiteElo "2408"]
[BlackElo "2672"]
[TimeControl "180+1"]
[EndTime "8:39:50 PDT"]
[Termination "brm72 won by checkmate"]

1. Na3 {[%clk 0:02:59.5]} 1... d5 {[%clk 0:02:58.4]} 2. c4 {[%clk 0:02:59.4]}
2... d4 {[%clk 0:02:56.5]} 3. e3 {[%clk 0:02:53.4]} 3... e5 {[%clk 0:02:56]} 4.
Nf3 {[%clk 0:02:52.9]} 4... Nc6 {[%clk 0:02:54.7]} 5. exd4 {[%clk 0:02:46.8]}
5... exd4 {[%clk 0:02:55.6]} 6. d3 {[%clk 0:02:45.9]} 6... Nf6 {[%clk
0:02:36.5]} 7. Be2 {[%clk 0:02:35.3]} 7... Be7 {[%clk 0:02:26.3]} 8. O-O {[%clk
0:02:33.5]} 8... O-O {[%clk 0:02:26.4]} 9. Nc2 {[%clk 0:02:26.1]} 9... a5 {[%clk
0:02:19.5]} 10. b3 {[%clk 0:02:25.5]} 10... Re8 {[%clk 0:02:13.1]} 11. a3 {[%clk
0:02:19.4]} 11... h6 {[%clk 0:01:43.7]} 12. Rb1 {[%clk 0:01:51.1]} 12... Bg4
{[%clk 0:01:41.9]} 13. b4 {[%clk 0:01:49.9]} 13... axb4 {[%clk 0:01:41.1]} 14.
axb4 {[%clk 0:01:49.2]} 14... Bxf3 {[%clk 0:01:41.3]} 15. Bxf3 {[%clk
0:01:48.9]} 15... Rb8 {[%clk 0:01:32.8]} 16. b5 {[%clk 0:01:47.9]} 16... Ne5
{[%clk 0:01:32.4]} 17. Be2 {[%clk 0:01:41.8]} 17... Bc5 {[%clk 0:01:31]} 18. f4
{[%clk 0:01:28.6]} 18... Ng6 {[%clk 0:01:29.8]} 19. Bf3 {[%clk 0:01:27.4]} 19...
b6 {[%clk 0:01:29.2]} 20. Re1 {[%clk 0:01:19.1]} 20... Qd6 {[%clk 0:01:25.5]}
21. g3 {[%clk 0:01:14.5]} 21... Rxe1+ {[%clk 0:01:18.5]} 22. Qxe1 {[%clk
0:01:13.9]} 22... Re8 {[%clk 0:01:18.3]} 23. Qf2 {[%clk 0:01:14.1]} 23... Ne7
{[%clk 0:01:08.2]} 24. Bb2 {[%clk 0:01:01.3]} 24... Nf5 {[%clk 0:01:07.6]} 25.
Re1 {[%clk 0:01:01.6]} 25... Ne3 {[%clk 0:01:06]} 26. Nxe3 {[%clk 0:00:58.1]}
26... dxe3 {[%clk 0:01:03.5]} 27. Qe2 {[%clk 0:00:58.5]} 27... Bd4 {[%clk
0:00:58.3]} 28. Bc1 {[%clk 0:00:56.3]} 28... Qc5 {[%clk 0:00:55.8]} 29. Kg2
{[%clk 0:00:55.6]} 29... g5 {[%clk 0:00:55.2]} 30. fxg5 {[%clk 0:00:53.8]} 30...
hxg5 {[%clk 0:00:56.1]} 31. Bg4 {[%clk 0:00:46.6]} 31... Kg7 {[%clk 0:00:54.4]}
32. Qf3 {[%clk 0:00:41.4]} 32... Qe5 {[%clk 0:00:47.1]} 33. Bf5 {[%clk
0:00:35.1]} 33... Bc5 {[%clk 0:00:40.2]} 34. Be4 {[%clk 0:00:22.5]} 34... Nxe4
{[%clk 0:00:35.9]} 35. Bxe3 {[%clk 0:00:23.1]} 35... Nf6 {[%clk 0:00:31.7]} 36.
Bd2 {[%clk 0:00:15.1]} 36... Qb2 {[%clk 0:00:27.5]} 37. Rxe8 {[%clk 0:00:13.3]}
37... Nxe8 {[%clk 0:00:28.4]} 38. Qe2 {[%clk 0:00:09.8]} 38... Nd6 {[%clk
0:00:25.1]} 39. Kh3 {[%clk 0:00:09.6]} 39... Qf6 {[%clk 0:00:24.3]} 40. Qe1
{[%clk 0:00:08.8]} 40... Qf5+ {[%clk 0:00:24.3]} 41. Kg2 {[%clk 0:00:09]} 41...
g4 {[%clk 0:00:24.2]} 42. Bc3+ {[%clk 0:00:08.6]} 42... Kg6 {[%clk 0:00:23.6]}
43. Qe7 {[%clk 0:00:07.2]} 43... Qf3# {[%clk 0:00:23.3]} 0-1

[Event "Early-Titled-Tuesday-Blitz-July-09-2024"]
[Site "Chess.com"]
[Date "2024.07.09"]
[Round "4"]
[White "DontMessWithTheFish"]
[Black "eljanov"]
[Result "0-1"]
[WhiteElo "2598"]
[BlackElo "2917"]
[TimeControl "180+1"]
[EndTime "8:39:51 PDT"]
[Termination "eljanov won by resignation"]

1. e4 {[%clk 0:03:00.9]} 1... c6 {[%clk 0:02:59.9]} 2. d4 {[%clk 0:02:59.9]}
2... d5 {[%clk 0:03:00.8]} 3. Nc3 {[%clk 0:02:59.9]} 3... dxe4 {[%clk
0:03:00.9]} 4. Nxe4 {[%clk 0:03:00.6]} 4... Nf6 {[%clk 0:03:01.7]} 5. Nxf6+
{[%clk 0:03:00.2]} 5... exf6 {[%clk 0:03:02.3]} 6. c3 {[%clk 0:03:00.6]} 6...
Bd6 {[%clk 0:03:02.1]} 7. Bd3 {[%clk 0:03:00.8]} 7... O-O {[%clk 0:03:02.7]} 8.
Ne2 {[%clk 0:03:01.4]} 8... Re8 {[%clk 0:03:03.2]} 9. O-O {[%clk 0:03:01.6]}
9... Nd7 {[%clk 0:03:02.1]} 10. Ng3 {[%clk 0:03:00.2]} 10... g6 {[%clk
0:03:01.5]} 11. Bd2 {[%clk 0:02:51]} 11... f5 {[%clk 0:02:56.7]} 12. Qf3 {[%clk
0:02:44.3]} 12... Nf6 {[%clk 0:02:53.8]} 13. Rfe1 {[%clk 0:02:41.9]} 13... Rxe1+
{[%clk 0:02:49.3]} 14. Rxe1 {[%clk 0:02:42.8]} 14... Be6 {[%clk 0:02:49.7]} 15.
Bg5 {[%clk 0:02:37.9]} 15... Be7 {[%clk 0:02:49.7]} 16. Qd1 {[%clk 0:02:29.2]}
16... Nd5 {[%clk 0:02:42.7]} 17. Bxe7 {[%clk 0:02:27.3]} 17... Qxe7 {[%clk
0:02:42.9]} 18. Bc4 {[%clk 0:02:18.6]} 18... Qf6 {[%clk 0:02:32.3]} 19. Bxd5
{[%clk 0:02:02.8]} 19... Bxd5 {[%clk 0:02:32.4]} 20. Re5 {[%clk 0:02:03.2]}
20... a5 {[%clk 0:02:20.5]} 21. b3 {[%clk 0:01:51.2]} 21... b5 {[%clk
0:02:17.6]} 22. Qe2 {[%clk 0:01:38.2]} 22... a4 {[%clk 0:01:55.4]} 23. c4 {[%clk
0:01:36.6]} 23... axb3 {[%clk 0:01:53]} 24. axb3 {[%clk 0:01:35]} 24... Ra1+
{[%clk 0:01:49.5]} 25. Nf1 {[%clk 0:01:35.3]} 25... bxc4 {[%clk 0:01:47.7]} 26.
bxc4 {[%clk 0:01:35.7]} 26... Be6 {[%clk 0:01:27.9]} 27. Qb2 {[%clk 0:01:25.9]}
27... Rd1 {[%clk 0:01:20.7]} 28. Qc3 {[%clk 0:00:49.9]} 28... Qd8 {[%clk
0:00:57.1]} 29. d5 {[%clk 0:00:45.5]} 29... cxd5 {[%clk 0:00:57.2]} 30. cxd5
{[%clk 0:00:46.2]} 30... Bxd5 {[%clk 0:00:54.2]} 31. Re1 {[%clk 0:00:26.7]}
31... Bb7 {[%clk 0:00:51]} 32. f3 {[%clk 0:00:11.2]} 32... Ba6 {[%clk
0:00:41.9]} 33. Ne3 {[%clk 0:00:06.6]} 33... Rd3 {[%clk 0:00:40.1]} 34. Qc5
{[%clk 0:00:03.9]} 34... h5 {[%clk 0:00:36]} 35. h3 {[%clk 0:00:02.4]} 35... Bb7
{[%clk 0:00:31.5]} 36. Qb4 {[%clk 0:00:01.7]} 36... Bc6 {[%clk 0:00:17.8]} 37.
Qb2 {[%clk 0:00:02.2]} 37... f4 {[%clk 0:00:14.4]} 38. Qc3 {[%clk 0:00:02.1]}
38... Rxc3 {[%clk 0:00:14.2]} 0-1

[Event "Early-Titled-Tuesday-Blitz-July-09-2024"]
[Site "Chess.com"]
[Date "2024.07.09"]
[Round "4"]
[White "bazar-wokzal"]
[Black "Alexchess1984"]
[Result "1/2-1/2"]
[WhiteElo "2602"]
[BlackElo "2795"]
[TimeControl "180+1"]
[EndTime "8:39:53 PDT"]
[Termination "Game drawn - insufficient material"]

1. e4 {[%clk 0:03:00.9]} 1... c5 {[%clk 0:02:58.9]} 2. c3 {[%clk 0:03:00.3]}
2... a6 {[%clk 0:02:52.2]} 3. d4 {[%clk 0:02:58.3]} 3... cxd4 {[%clk 0:02:52.6]}
4. cxd4 {[%clk 0:02:58]} 4... d5 {[%clk 0:02:53]} 5. e5 {[%clk 0:02:58.4]} 5...
Nc6 {[%clk 0:02:49.5]} 6. Nc3 {[%clk 0:02:57.9]} 6... Bf5 {[%clk 0:02:48.9]} 7.
g4 {[%clk 0:02:54.6]} 7... Bd7 {[%clk 0:02:37.4]} 8. Bg2 {[%clk 0:02:48]} 8...
e6 {[%clk 0:02:37.4]} 9. Be3 {[%clk 0:02:45.7]} 9... h5 {[%clk 0:02:35.9]} 10.
h3 {[%clk 0:02:41.9]} 10... hxg4 {[%clk 0:02:27.7]} 11. hxg4 {[%clk 0:02:41.7]}
11... Rxh1 {[%clk 0:02:28.1]} 12. Bxh1 {[%clk 0:02:42.6]} 12... Qh4 {[%clk
0:02:27.8]} 13. Bf3 {[%clk 0:02:36.9]} 13... f6 {[%clk 0:02:21.3]} 14. exf6
{[%clk 0:02:31.3]} 14... Nxf6 {[%clk 0:02:21]} 15. g5 {[%clk 0:02:23.6]} 15...
Ne4 {[%clk 0:02:19.7]} 16. Nxe4 {[%clk 0:02:17.7]} 16... dxe4 {[%clk 0:02:19.4]}
17. Bh5+ {[%clk 0:02:17.8]} 17... Kd8 {[%clk 0:02:18.2]} 18. Qg4 {[%clk
0:02:15.5]} 18... Bb4+ {[%clk 0:02:13.4]} 19. Ke2 {[%clk 0:02:05.5]} 19... Qh2
{[%clk 0:01:57.7]} 20. Rd1 {[%clk 0:01:16.5]} 20... Ne7 {[%clk 0:01:44.5]} 21.
Bf4 {[%clk 0:01:02.7]} 21... Bb5+ {[%clk 0:01:37]} 22. Ke3 {[%clk 0:01:02.8]}
22... Nd5+ {[%clk 0:01:30.2]} 23. Kxe4 {[%clk 0:01:03]} 23... Nxf4 {[%clk
0:01:28.4]} 24. Qxf4 {[%clk 0:00:46.2]} 24... Qxh5 {[%clk 0:01:20.9]} 25. Nf3
{[%clk 0:00:41.4]} 25... Bc6+ {[%clk 0:01:16.5]} 26. d5 {[%clk 0:00:39.9]} 26...
Bxd5+ {[%clk 0:01:14.7]} 27. Ke5 {[%clk 0:00:25.1]} 27... Ke7 {[%clk 0:00:52.8]}
28. Qxb4+ {[%clk 0:00:19.8]} 28... Kf7 {[%clk 0:00:48.3]} 29. Rxd5 {[%clk
0:00:19.8]} 29... exd5 {[%clk 0:00:43.9]} 30. Qxb7+ {[%clk 0:00:19.9]} 30... Kg6
{[%clk 0:00:44.4]} 31. Qxa8 {[%clk 0:00:15.3]} 31... Qxf3 {[%clk 0:00:44.3]} 32.
Qxd5 {[%clk 0:00:13.8]} 32... Qxf2 {[%clk 0:00:39.1]} 33. Qe6+ {[%clk
0:00:10.3]} 33... Kxg5 {[%clk 0:00:38.4]} 34. Qxa6 {[%clk 0:00:09.2]} 34...
Qxb2+ {[%clk 0:00:37.2]} 35. Ke4 {[%clk 0:00:09.1]} 35... Kh4 {[%clk 0:00:31.3]}
36. Qe6 {[%clk 0:00:07.3]} 36... Qe2+ {[%clk 0:00:29.7]} 37. Kf5 {[%clk
0:00:04.7]} 37... Qxe6+ {[%clk 0:00:26.6]} 38. Kxe6 {[%clk 0:00:04.9]} 38... g5
{[%clk 0:00:27.5]} 39. a4 {[%clk 0:00:04.3]} 39... g4 {[%clk 0:00:28.4]} 40. a5
{[%clk 0:00:04.9]} 40... g3 {[%clk 0:00:29.3]} 41. a6 {[%clk 0:00:05.6]} 41...
g2 {[%clk 0:00:30.2]} 42. a7 {[%clk 0:00:06.3]} 42... g1=Q {[%clk 0:00:31.1]}
43. a8=Q {[%clk 0:00:06.7]} 43... Qe3+ {[%clk 0:00:29.6]} 44. Kd6 {[%clk
0:00:06.2]} 44... Qd4+ {[%clk 0:00:28.9]} 45. Qd5 {[%clk 0:00:05.8]} 45... Qxd5+
{[%clk 0:00:28.4]} 46. Kxd5 {[%clk 0:00:06.7]} 1/2-1/2

[Event "Early-Titled-Tuesday-Blitz-July-09-2024"]
[Site "Chess.com"]
[Date "2024.07.09"]
[Round "4"]
[White "dapsay"]
[Black "sofaceindisguise"]
[Result "1-0"]
[WhiteElo "2569"]
[BlackElo "2761"]
[TimeControl "180+1"]
[EndTime "8:39:53 PDT"]
[Termination "dapsay won by resignation"]

1. e4 {[%clk 0:03:00.9]} 1... c6 {[%clk 0:02:56.6]} 2. Nf3 {[%clk 0:02:59.5]}
2... d5 {[%clk 0:02:57.1]} 3. Nc3 {[%clk 0:02:59.7]} 3... dxe4 {[%clk
0:02:51.6]} 4. Nxe4 {[%clk 0:02:59.9]} 4... Nf6 {[%clk 0:02:52.5]} 5. Ng3 {[%clk
0:03:00]} 5... g6 {[%clk 0:02:51.6]} 6. Bc4 {[%clk 0:02:59]} 6... Bg7 {[%clk
0:02:51.4]} 7. O-O {[%clk 0:02:59.1]} 7... O-O {[%clk 0:02:51.7]} 8. d4 {[%clk
0:02:59.2]} 8... Bg4 {[%clk 0:02:50]} 9. c3 {[%clk 0:02:59.2]} 9... Nbd7 {[%clk
0:02:49.4]} 10. h3 {[%clk 0:02:59.5]} 10... Bxf3 {[%clk 0:02:49.3]} 11. Qxf3
{[%clk 0:03:00.3]} 11... e5 {[%clk 0:02:43.9]} 12. Rd1 {[%clk 0:02:55.2]} 12...
exd4 {[%clk 0:02:41.8]} 13. Rxd4 {[%clk 0:02:55.3]} 13... Qb6 {[%clk 0:02:33.7]}
14. Qd1 {[%clk 0:02:42.8]} 14... Ne5 {[%clk 0:02:25.1]} 15. Bb3 {[%clk
0:02:42.6]} 15... Rad8 {[%clk 0:02:20.1]} 16. Be3 {[%clk 0:02:42.6]} 16... Qc7
{[%clk 0:02:10.6]} 17. Qe2 {[%clk 0:02:39.6]} 17... Nd5 {[%clk 0:01:57]} 18. Bg5
{[%clk 0:02:36.1]} 18... Bf6 {[%clk 0:01:42.2]} 19. Bxf6 {[%clk 0:02:32]} 19...
Nxf6 {[%clk 0:01:42.2]} 20. Rad1 {[%clk 0:02:31.2]} 20... Rxd4 {[%clk
0:01:39.9]} 21. Rxd4 {[%clk 0:02:30.9]} 21... Re8 {[%clk 0:01:36.1]} 22. Qd2
{[%clk 0:02:24.5]} 22... c5 {[%clk 0:01:29.2]} 23. Rf4 {[%clk 0:02:19.1]} 23...
Kg7 {[%clk 0:01:07.7]} 24. Ne4 {[%clk 0:01:50.2]} 24... Nxe4 {[%clk 0:00:55.5]}
25. Rxe4 {[%clk 0:01:50.5]} 25... c4 {[%clk 0:00:52]} 26. Bxc4 {[%clk
0:01:40.5]} 26... Nxc4 {[%clk 0:00:51.1]} 27. Qd4+ {[%clk 0:01:41.1]} 27... Ne5
{[%clk 0:00:48.6]} 28. f4 {[%clk 0:01:41.2]} 28... Rd8 {[%clk 0:00:43.8]} 29.
Qxe5+ {[%clk 0:01:39.8]} 29... Qxe5 {[%clk 0:00:44]} 30. Rxe5 {[%clk 0:01:40.6]}
30... Rd2 {[%clk 0:00:44.3]} 31. Rb5 {[%clk 0:01:39.1]} 31... b6 {[%clk
0:00:45]} 32. a4 {[%clk 0:01:37.7]} 32... h5 {[%clk 0:00:42]} 33. h4 {[%clk
0:01:37.1]} 33... Kf6 {[%clk 0:00:36.3]} 34. Kh2 {[%clk 0:01:37]} 34... Ke6
{[%clk 0:00:33.6]} 35. Kg3 {[%clk 0:01:37.1]} 35... Rd3+ {[%clk 0:00:33.1]} 36.
Kf2 {[%clk 0:01:37]} 36... Rd2+ {[%clk 0:00:33.7]} 37. Kf3 {[%clk 0:01:37.3]}
37... Rd3+ {[%clk 0:00:34.3]} 38. Ke2 {[%clk 0:01:36.1]} 38... Rg3 {[%clk
0:00:33.4]} 39. Rg5 {[%clk 0:01:33.2]} 39... Rxg5 {[%clk 0:00:24.9]} 40. fxg5
{[%clk 0:01:33.4]} 40... Kf5 {[%clk 0:00:20.1]} 41. Kf3 {[%clk 0:01:33.4]} 41...
Ke5 {[%clk 0:00:20.4]} 42. b3 {[%clk 0:01:25.9]} 42... Kd5 {[%clk 0:00:20.4]}
43. Kf4 {[%clk 0:01:25.7]} 43... a6 {[%clk 0:00:20.1]} 44. g3 {[%clk 0:01:25.3]}
44... a5 {[%clk 0:00:15]} 45. b4 {[%clk 0:01:23.1]} 45... Kc4 {[%clk 0:00:14]}
46. bxa5 {[%clk 0:01:21.8]} 46... bxa5 {[%clk 0:00:14.2]} 47. Ke5 {[%clk
0:01:22.5]} 47... Kb3 {[%clk 0:00:14.6]} 48. Kf6 {[%clk 0:01:23.3]} 48... Kxa4
{[%clk 0:00:15]} 49. Kxf7 {[%clk 0:01:24.2]} 49... Kb3 {[%clk 0:00:14.2]} 50.
Kxg6 {[%clk 0:01:25.1]} 50... a4 {[%clk 0:00:14.6]} 51. Kxh5 {[%clk 0:01:25.4]}
51... a3 {[%clk 0:00:15.5]} 52. g6 {[%clk 0:01:26]} 52... a2 {[%clk 0:00:16.1]}
53. g7 {[%clk 0:01:26.7]} 53... a1=Q {[%clk 0:00:15]} 54. g8=Q+ {[%clk
0:01:26.7]} 54... Kc2 {[%clk 0:00:15.7]} 55. Qg6+ {[%clk 0:01:26.2]} 55... Kd2
{[%clk 0:00:16.1]} 56. c4 {[%clk 0:01:24.6]} 56... Ke3 {[%clk 0:00:14.3]} 57. g4
{[%clk 0:01:24.6]} 57... Kf4 {[%clk 0:00:14.5]} 58. Qf5+ {[%clk 0:01:24]} 58...
Kg3 {[%clk 0:00:15.1]} 59. g5 {[%clk 0:01:21.6]} 59... Qh8+ {[%clk 0:00:15.5]}
60. Kg6 {[%clk 0:01:22]} 60... Qg8+ {[%clk 0:00:15.7]} 61. Kh6 {[%clk
0:01:21.9]} 61... Qh8+ {[%clk 0:00:15.9]} 62. Qh7 {[%clk 0:01:22.3]} 62... Qf8+
{[%clk 0:00:16.6]} 63. Qg7 {[%clk 0:01:23]} 63... Qd6+ {[%clk 0:00:16]} 64. Qf6
{[%clk 0:01:21.2]} 64... Qc5 {[%clk 0:00:15.9]} 65. h5 {[%clk 0:01:20.9]} 65...
Kg4 {[%clk 0:00:16.4]} 66. Qe6+ {[%clk 0:01:19.4]} 66... Kh4 {[%clk 0:00:16.7]}
67. Qe4+ {[%clk 0:01:18.7]} 67... Kg3 {[%clk 0:00:17.2]} 68. g6 {[%clk
0:01:18.6]} 68... Qf8+ {[%clk 0:00:17.9]} 69. Kh7 {[%clk 0:01:18.8]} 69... Qa8
{[%clk 0:00:08.1]} 70. Qxa8 {[%clk 0:01:16.6]} 1-0